[Event "Early-Titled-Tuesday-Blitz-February-20-2024"]
[Site "Chess.com"]
[Date "2024.02.20"]
[Round "7"]
[White "Matols"]
[Black "ZachHKL"]
[Result "1-0"]
[WhiteElo "2351"]
[BlackElo "2102"]
[TimeControl "180+1"]
[EndTime "9:20:09 PST"]
[Termination "Matols won by resignation"]

1. d4 {[%clk 0:03:00.9]} 1... Nf6 {[%clk 0:02:37.6]} 2. c4 {[%clk 0:03:01.1]}
2... e6 {[%clk 0:02:37.1]} 3. g3 {[%clk 0:03:01.2]} 3... Bb4+ {[%clk 0:02:35.7]}
4. Bd2 {[%clk 0:03:01.8]} 4... Qe7 {[%clk 0:02:34.4]} 5. Nf3 {[%clk 0:03:00.9]}
5... O-O {[%clk 0:02:33.2]} 6. Bg2 {[%clk 0:03:01.4]} 6... Bxd2+ {[%clk
0:02:32.8]} 7. Qxd2 {[%clk 0:02:58.2]} 7... d6 {[%clk 0:02:31.7]} 8. O-O {[%clk
0:02:56.1]} 8... Nbd7 {[%clk 0:02:30.7]} 9. Nc3 {[%clk 0:02:55.3]} 9... a6
{[%clk 0:02:24.6]} 10. Rfd1 {[%clk 0:02:54.4]} 10... e5 {[%clk 0:02:24.6]} 11.
dxe5 {[%clk 0:02:54]} 11... dxe5 {[%clk 0:02:19.5]} 12. e3 {[%clk 0:02:43.8]}
12... Nc5 {[%clk 0:02:12.4]} 13. b4 {[%clk 0:02:35.5]} 13... Ncd7 {[%clk
0:02:00.9]} 14. a3 {[%clk 0:02:28.6]} 14... Nb6 {[%clk 0:01:58]} 15. Qe2 {[%clk
0:02:26.3]} 15... Bg4 {[%clk 0:01:48.9]} 16. h3 {[%clk 0:02:25.7]} 16... Bh5
{[%clk 0:01:48.2]} 17. g4 {[%clk 0:02:25.8]} 17... Bg6 {[%clk 0:01:48.2]} 18.
Nd2 {[%clk 0:02:19.9]} 18... c6 {[%clk 0:01:44.7]} 19. Nde4 {[%clk 0:02:16.8]}
19... Nxe4 {[%clk 0:01:42]} 20. Nxe4 {[%clk 0:02:17.7]} 20... Bxe4 {[%clk
0:01:41.2]} 21. Bxe4 {[%clk 0:02:18.6]} 21... Qe6 {[%clk 0:01:40.5]} 22. Rac1
{[%clk 0:02:12.2]} 22... Rfd8 {[%clk 0:01:38]} 23. Bf5 {[%clk 0:01:55.2]} 23...
Qe7 {[%clk 0:01:35.7]} 24. Kg2 {[%clk 0:01:53.9]} 24... e4 {[%clk 0:01:21.7]}
25. Qc2 {[%clk 0:01:48.7]} 25... Re8 {[%clk 0:01:18.5]} 26. Rd4 {[%clk
0:01:46.4]} 26... a5 {[%clk 0:01:05.8]} 27. Bxe4 {[%clk 0:01:44.4]} 27... axb4
{[%clk 0:01:03.3]} 28. axb4 {[%clk 0:01:45.3]} 28... h6 {[%clk 0:00:55.1]} 29.
Bh7+ {[%clk 0:01:42.2]} 29... Kh8 {[%clk 0:00:55]} 30. Bf5 {[%clk 0:01:40.8]}
30... Rad8 {[%clk 0:00:49.5]} 31. Rcd1 {[%clk 0:01:37.9]} 31... g6 {[%clk
0:00:46.5]} 32. Be4 {[%clk 0:01:30.6]} 32... Rxd4 {[%clk 0:00:40.5]} 33. Rxd4
{[%clk 0:01:31.5]} 33... Kg7 {[%clk 0:00:37.9]} 34. Qc3 {[%clk 0:01:29.2]} 34...
Qf6 {[%clk 0:00:31.8]} 35. Qd3 {[%clk 0:01:23.7]} 35... Qe7 {[%clk 0:00:29.6]}
36. Bf3 {[%clk 0:01:22.2]} 36... Qxb4 {[%clk 0:00:26.7]} 37. c5 {[%clk
0:01:21.5]} 37... Qxc5 {[%clk 0:00:26.6]} 38. Rd8 {[%clk 0:01:14.8]} 38... Rxd8
{[%clk 0:00:22]} 39. Qxd8 {[%clk 0:01:15.7]} 39... Nd5 {[%clk 0:00:20.5]} 40.
Qd7 {[%clk 0:01:13.4]} 40... b5 {[%clk 0:00:20.3]} 41. h4 {[%clk 0:01:08]} 41...
b4 {[%clk 0:00:19.7]} 42. h5 {[%clk 0:01:07.8]} 42... gxh5 {[%clk 0:00:19.4]}
43. gxh5 {[%clk 0:01:07.5]} 43... b3 {[%clk 0:00:19.1]} 44. Qg4+ {[%clk
0:01:06.8]} 44... Kf8 {[%clk 0:00:18.5]} 45. Qc8+ {[%clk 0:01:06.3]} 45... Kg7
{[%clk 0:00:18.7]} 46. Qg4+ {[%clk 0:01:05.5]} 46... Kf6 {[%clk 0:00:17.9]} 47.
Qh4+ {[%clk 0:01:03.3]} 47... Ke6 {[%clk 0:00:13.6]} 48. Qg4+ {[%clk 0:00:54.2]}
48... Ke7 {[%clk 0:00:13.6]} 49. Qh4+ {[%clk 0:00:52.7]} 49... Nf6 {[%clk
0:00:13.2]} 50. Qf4 {[%clk 0:00:47]} 50... Nd5 {[%clk 0:00:10.9]} 51. Qxh6
{[%clk 0:00:46.2]} 51... b2 {[%clk 0:00:10.2]} 52. Qg5+ {[%clk 0:00:45]} 52...
Ke8 {[%clk 0:00:10.2]} 53. Qe5+ {[%clk 0:00:43.2]} 53... Kd8 {[%clk 0:00:09.1]}
54. Qxb2 {[%clk 0:00:43]} 54... Qf8 {[%clk 0:00:08.7]} 55. Qb8+ {[%clk
0:00:41.4]} 55... Ke7 {[%clk 0:00:08.4]} 56. Qxf8+ {[%clk 0:00:41.1]} 56... Kxf8
{[%clk 0:00:09.3]} 57. Bxd5 {[%clk 0:00:40.9]} 57... cxd5 {[%clk 0:00:09.3]} 58.
Kg3 {[%clk 0:00:40.7]} 58... Kg7 {[%clk 0:00:10]} 59. Kg4 {[%clk 0:00:40.9]}
59... Kh6 {[%clk 0:00:10.9]} 60. Kh4 {[%clk 0:00:41]} 60... f5 {[%clk
0:00:11.1]} 61. f4 {[%clk 0:00:34.4]} 61... Kg7 {[%clk 0:00:11.1]} 62. Kg5
{[%clk 0:00:34.5]} 1-0

[Event "Early-Titled-Tuesday-Blitz-February-20-2024"]
[Site "Chess.com"]
[Date "2024.02.20"]
[Round "7"]
[White "Sofia_Blokhin"]
[Black "Kostukov_Alex"]
[Result "0-1"]
[WhiteElo "2236"]
[BlackElo "2348"]
[TimeControl "180+1"]
[EndTime "9:20:11 PST"]
[Termination "Kostukov_Alex won on time"]

1. d4 {[%clk 0:03:00.9]} 1... g6 {[%clk 0:02:55]} 2. e4 {[%clk 0:02:59.9]} 2...
c5 {[%clk 0:02:54]} 3. d5 {[%clk 0:02:53.3]} 3... Bg7 {[%clk 0:02:53.2]} 4. c4
{[%clk 0:02:52.8]} 4... d6 {[%clk 0:02:53.5]} 5. Nc3 {[%clk 0:02:51.6]} 5... Nf6
{[%clk 0:02:54.1]} 6. Be2 {[%clk 0:02:48.4]} 6... O-O {[%clk 0:02:54.7]} 7. f4
{[%clk 0:02:41.8]} 7... e6 {[%clk 0:02:54.5]} 8. Nf3 {[%clk 0:02:39.1]} 8...
exd5 {[%clk 0:02:52.9]} 9. cxd5 {[%clk 0:02:36.1]} 9... Re8 {[%clk 0:02:50.1]}
10. Qc2 {[%clk 0:02:31.7]} 10... Na6 {[%clk 0:02:22.9]} 11. a3 {[%clk
0:02:30.2]} 11... Nc7 {[%clk 0:02:14.9]} 12. O-O {[%clk 0:02:27.7]} 12... b5
{[%clk 0:02:05.4]} 13. b4 {[%clk 0:02:08]} 13... cxb4 {[%clk 0:01:58.6]} 14.
axb4 {[%clk 0:02:05.1]} 14... Nxe4 {[%clk 0:01:58.6]} 15. Nxe4 {[%clk
0:01:56.9]} 15... Bxa1 {[%clk 0:01:57.7]} 16. Bd2 {[%clk 0:01:48.2]} 16... Bg7
{[%clk 0:01:54]} 17. Rc1 {[%clk 0:01:47.6]} 17... Bf5 {[%clk 0:01:47.2]} 18. Bd3
{[%clk 0:01:43]} 18... Nxd5 {[%clk 0:01:45.1]} 19. Qc6 {[%clk 0:01:35.6]} 19...
Nb6 {[%clk 0:01:24.5]} 20. Nf2 {[%clk 0:01:21.6]} 20... Bxd3 {[%clk 0:01:18.8]}
21. Nxd3 {[%clk 0:01:21.3]} 21... Nc4 {[%clk 0:01:16]} 22. Qxb5 {[%clk
0:01:17.5]} 22... Nxd2 {[%clk 0:01:11.6]} 23. Nxd2 {[%clk 0:01:17.1]} 23... Rc8
{[%clk 0:01:07.5]} 24. Rc6 {[%clk 0:01:04]} 24... Rxc6 {[%clk 0:00:51.2]} 25.
Qxc6 {[%clk 0:01:03.3]} 25... Bd4+ {[%clk 0:00:46.7]} 26. Kf1 {[%clk 0:01:01.2]}
26... Re7 {[%clk 0:00:34.9]} 27. Ne4 {[%clk 0:00:49.8]} 27... d5 {[%clk
0:00:27.7]} 28. Ng5 {[%clk 0:00:30.2]} 28... Rc7 {[%clk 0:00:22.5]} 29. Qb5
{[%clk 0:00:22.2]} 29... Qe7 {[%clk 0:00:16]} 30. Qb8+ {[%clk 0:00:21.1]} 30...
Kg7 {[%clk 0:00:15.1]} 31. Nf3 {[%clk 0:00:16.6]} 31... Bb6 {[%clk 0:00:13.5]}
32. Nfe5 {[%clk 0:00:15.9]} 32... f6 {[%clk 0:00:13.5]} 33. Nf3 {[%clk
0:00:12.4]} 33... Qe3 {[%clk 0:00:13.3]} 34. Nc5 {[%clk 0:00:09.9]} 34... Re7
{[%clk 0:00:10.2]} 35. Qc8 {[%clk 0:00:05.7]} 35... Qe2+ {[%clk 0:00:09.9]} 36.
Kg1 {[%clk 0:00:06]} 36... Qe3+ {[%clk 0:00:07.4]} 37. Kf1 {[%clk 0:00:06.2]}
37... Qxf4 {[%clk 0:00:07.8]} 38. Kf2 {[%clk 0:00:03.1]} 38... Qc7 {[%clk
0:00:03.6]} 39. Qg4 {[%clk 0:00:02.2]} 39... Bxc5+ {[%clk 0:00:03]} 40. bxc5
{[%clk 0:00:02.6]} 40... Qxc5+ {[%clk 0:00:03.6]} 41. Kg3 {[%clk 0:00:03.2]}
41... Qd6+ {[%clk 0:00:03.6]} 42. Kf2 {[%clk 0:00:02.2]} 42... Qe6 {[%clk
0:00:04.5]} 43. Qd4 {[%clk 0:00:01.2]} 43... Qd6 {[%clk 0:00:03.2]} 0-1

[Event "Early-Titled-Tuesday-Blitz-February-20-2024"]
[Site "Chess.com"]
[Date "2024.02.20"]
[Round "7"]
[White "Bauman_Guy"]
[Black "Bigfish1995"]
[Result "0-1"]
[WhiteElo "2920"]
[BlackElo "3173"]
[TimeControl "180+1"]
[EndTime "9:20:12 PST"]
[Termination "Bigfish1995 won by checkmate"]

1. e4 {[%clk 0:03:00.9]} 1... c6 {[%clk 0:02:47.1]} 2. d4 {[%clk 0:03:00.6]}
2... d5 {[%clk 0:02:47.4]} 3. e5 {[%clk 0:03:01.1]} 3... Bf5 {[%clk 0:02:47.2]}
4. h4 {[%clk 0:03:01.7]} 4... h5 {[%clk 0:02:46.3]} 5. Bd3 {[%clk 0:03:02.3]}
5... Bxd3 {[%clk 0:02:45.8]} 6. Qxd3 {[%clk 0:03:03.2]} 6... e6 {[%clk
0:02:46.1]} 7. Nf3 {[%clk 0:03:03.3]} 7... c5 {[%clk 0:02:46.3]} 8. c4 {[%clk
0:02:57]} 8... cxd4 {[%clk 0:02:39.4]} 9. Nxd4 {[%clk 0:02:51.7]} 9... dxc4
{[%clk 0:02:12.8]} 10. Qxc4 {[%clk 0:02:49.8]} 10... Qa5+ {[%clk 0:02:12.7]} 11.
Nc3 {[%clk 0:02:49.7]} 11... Qxe5+ {[%clk 0:02:02.5]} 12. Be3 {[%clk 0:02:48.2]}
12... Na6 {[%clk 0:02:03]} 13. Qa4+ {[%clk 0:02:21.3]} 13... Ke7 {[%clk
0:01:56.4]} 14. O-O-O {[%clk 0:02:17]} 14... Kf6 {[%clk 0:01:23.8]} 15. Nf3
{[%clk 0:01:25.6]} 15... Qf5 {[%clk 0:01:22.7]} 16. Rh3 {[%clk 0:01:20.7]} 16...
Kg6 {[%clk 0:01:01.2]} 17. Rg3+ {[%clk 0:01:16.2]} 17... Kh7 {[%clk 0:01:01.1]}
18. Ng5+ {[%clk 0:01:16.1]} 18... Kg6 {[%clk 0:01:00.4]} 19. Nxe6+ {[%clk
0:01:01.8]} 19... Kh7 {[%clk 0:01:00.2]} 20. Ng5+ {[%clk 0:01:01.9]} 20... Kg6
{[%clk 0:01:00.8]} 21. Rf3 {[%clk 0:00:35.8]} 21... Qg4 {[%clk 0:00:56.2]} 22.
Rf4 {[%clk 0:00:34.6]} 22... Qc8 {[%clk 0:00:51.2]} 23. Rxf7 {[%clk 0:00:30.2]}
23... Nf6 {[%clk 0:00:48.5]} 24. Rd5 {[%clk 0:00:27.2]} 24... Nb4 {[%clk
0:00:46.6]} 25. Rb5 {[%clk 0:00:20.3]} 25... Qc4 {[%clk 0:00:43.4]} 26. Rbxb7
{[%clk 0:00:13.1]} 26... Rd8 {[%clk 0:00:33.1]} 27. Bd2 {[%clk 0:00:07.2]} 27...
Qd3 {[%clk 0:00:31.6]} 28. Qd1 {[%clk 0:00:04.9]} 28... Qf5 {[%clk 0:00:16.4]}
29. Nf3 {[%clk 0:00:05.3]} 29... Nd3+ {[%clk 0:00:16]} 30. Kb1 {[%clk
0:00:05.7]} 30... Ne5+ {[%clk 0:00:16.5]} 31. Qc2 {[%clk 0:00:05.1]} 31... Qxc2+
{[%clk 0:00:15.8]} 32. Kxc2 {[%clk 0:00:06]} 32... Nxf7 {[%clk 0:00:16.2]} 33.
Rxa7 {[%clk 0:00:06.9]} 33... Bc5 {[%clk 0:00:16]} 34. Ra6 {[%clk 0:00:07.5]}
34... Bxf2 {[%clk 0:00:15.8]} 35. Ne4 {[%clk 0:00:08.2]} 35... Bd4 {[%clk
0:00:14.1]} 36. Neg5 {[%clk 0:00:07.3]} 36... Rd7 {[%clk 0:00:12.6]} 37. Nxd4
{[%clk 0:00:03.7]} 37... Rxd4 {[%clk 0:00:11.9]} 38. Ne6 {[%clk 0:00:04.6]}
38... Rd7 {[%clk 0:00:11.4]} 39. Nf4+ {[%clk 0:00:05]} 39... Kh7 {[%clk
0:00:11.6]} 40. Bc3 {[%clk 0:00:05.9]} 40... Rc8 {[%clk 0:00:11.6]} 41. Kb1
{[%clk 0:00:05.8]} 41... Ne4 {[%clk 0:00:11.7]} 42. Nxh5 {[%clk 0:00:04.5]}
42... Nxc3+ {[%clk 0:00:11.2]} 43. bxc3 {[%clk 0:00:05.4]} 43... Rxc3 {[%clk
0:00:10.7]} 44. Kb2 {[%clk 0:00:06]} 44... Rc4 {[%clk 0:00:10.7]} 45. g3 {[%clk
0:00:05.5]} 45... Rb7+ {[%clk 0:00:10.8]} 46. Ka3 {[%clk 0:00:05.6]} 46... Ne5
{[%clk 0:00:11.4]} 47. Nf4 {[%clk 0:00:04.7]} 47... Rc3+ {[%clk 0:00:11]} 48.
Ka4 {[%clk 0:00:05.2]} 48... Nc6 {[%clk 0:00:11.4]} 49. a3 {[%clk 0:00:04.7]}
49... Rc4# {[%clk 0:00:10.8]} 0-1

[Event "Early-Titled-Tuesday-Blitz-February-20-2024"]
[Site "Chess.com"]
[Date "2024.02.20"]
[Round "7"]
[White "Ati1517"]
[Black "kibromNNN"]
[Result "1-0"]
[WhiteElo "2232"]
[BlackElo "1754"]
[TimeControl "180+1"]
[EndTime "9:20:12 PST"]
[Termination "Ati1517 won on time"]

1. e4 {[%clk 0:03:00.9]} 1... d6 {[%clk 0:02:58.3]} 2. d4 {[%clk 0:03:00.5]}
2... Nf6 {[%clk 0:02:56.9]} 3. Nc3 {[%clk 0:03:00.8]} 3... c6 {[%clk 0:02:55.1]}
4. Nf3 {[%clk 0:03:00.6]} 4... Bg4 {[%clk 0:02:54.9]} 5. Bc4 {[%clk 0:02:59.8]}
5... e6 {[%clk 0:02:54.6]} 6. h3 {[%clk 0:02:58.6]} 6... Bh5 {[%clk 0:02:53.1]}
7. Bg5 {[%clk 0:02:58.9]} 7... Be7 {[%clk 0:02:52]} 8. Qd2 {[%clk 0:02:58.1]}
8... Nbd7 {[%clk 0:02:49.6]} 9. g4 {[%clk 0:02:55.7]} 9... Bg6 {[%clk
0:02:48.6]} 10. Qe3 {[%clk 0:02:50.8]} 10... b5 {[%clk 0:02:46.8]} 11. Bd3
{[%clk 0:02:49.6]} 11... b4 {[%clk 0:02:45.6]} 12. Ne2 {[%clk 0:02:48]} 12... e5
{[%clk 0:02:31.4]} 13. dxe5 {[%clk 0:02:44.1]} 13... dxe5 {[%clk 0:02:31]} 14.
O-O-O {[%clk 0:02:41.8]} 14... Qb6 {[%clk 0:02:24.1]} 15. Ng3 {[%clk 0:02:32.4]}
15... Bc5 {[%clk 0:02:17.2]} 16. Qe2 {[%clk 0:02:29.1]} 16... Bxf2 {[%clk
0:02:10.7]} 17. Nf5 {[%clk 0:02:26.5]} 17... Bxf5 {[%clk 0:02:10.1]} 18. gxf5
{[%clk 0:02:27.1]} 18... Bc5 {[%clk 0:01:58.5]} 19. Bxf6 {[%clk 0:02:23.8]}
19... gxf6 {[%clk 0:01:58.6]} 20. Qg2 {[%clk 0:02:22]} 20... O-O-O {[%clk
0:01:51.3]} 21. Nd2 {[%clk 0:02:17.7]} 21... Rhg8 {[%clk 0:01:47]} 22. Qe2
{[%clk 0:02:16.2]} 22... Be3 {[%clk 0:01:46]} 23. Kb1 {[%clk 0:02:13]} 23... Bf4
{[%clk 0:01:35.1]} 24. Nc4 {[%clk 0:02:12.3]} 24... Qc7 {[%clk 0:01:32.3]} 25.
Nd6+ {[%clk 0:01:59.5]} 25... Kb8 {[%clk 0:01:27.1]} 26. Ba6 {[%clk 0:01:57.6]}
26... Nc5 {[%clk 0:01:17.8]} 27. Qc4 {[%clk 0:01:21.5]} 27... Nxa6 {[%clk
0:01:06.9]} 28. Nxf7 {[%clk 0:01:17.1]} 28... Rxd1+ {[%clk 0:01:01.3]} 29. Rxd1
{[%clk 0:01:11.6]} 29... Qb6 {[%clk 0:00:53.4]} 30. Nxe5 {[%clk 0:01:08.9]}
30... Rg1 {[%clk 0:00:38.8]} 31. Nxc6+ {[%clk 0:00:53.4]} 31... Kb7 {[%clk
0:00:30.2]} 32. Qf7+ {[%clk 0:00:42.4]} 32... Nc7 {[%clk 0:00:19.6]} 33. Na5+
{[%clk 0:00:30.6]} 33... Ka6 {[%clk 0:00:12.8]} 34. Qd7 {[%clk 0:00:19.1]} 34...
Rxd1+ {[%clk 0:00:11]} 35. Qxd1 {[%clk 0:00:19.1]} 35... Qxa5 {[%clk 0:00:09.2]}
36. Qf1+ {[%clk 0:00:17]} 36... Kb7 {[%clk 0:00:06.5]} 37. Qxf4 {[%clk
0:00:17.9]} 37... Qc5 {[%clk 0:00:04.1]} 38. b3 {[%clk 0:00:16.6]} 38... a5
{[%clk 0:00:03.8]} 39. Qg4 {[%clk 0:00:15.2]} 39... Nb5 {[%clk 0:00:02.8]} 40.
Qf3 {[%clk 0:00:14]} 40... Nc3+ {[%clk 0:00:00.8]} 41. Kb2 {[%clk 0:00:13.4]}
1-0

[Event "Early-Titled-Tuesday-Blitz-February-20-2024"]
[Site "Chess.com"]
[Date "2024.02.20"]
[Round "7"]
[White "CaspiIsrael"]
[Black "Eagle_2019"]
[Result "0-1"]
[WhiteElo "2723"]
[BlackElo "2888"]
[TimeControl "180+1"]
[EndTime "9:20:13 PST"]
[Termination "Eagle_2019 won by checkmate"]

1. e4 {[%clk 0:03:00.9]} 1... c5 {[%clk 0:02:58.8]} 2. Nf3 {[%clk 0:03:00.2]}
2... Nc6 {[%clk 0:02:57.3]} 3. d4 {[%clk 0:03:00.4]} 3... cxd4 {[%clk
0:02:56.5]} 4. Nxd4 {[%clk 0:03:01.3]} 4... Nf6 {[%clk 0:02:53.9]} 5. Nc3 {[%clk
0:03:00.3]} 5... e6 {[%clk 0:02:52.4]} 6. Ndb5 {[%clk 0:03:00]} 6... Bc5 {[%clk
0:02:51.1]} 7. Bf4 {[%clk 0:02:58.9]} 7... O-O {[%clk 0:02:50.2]} 8. Bc7 {[%clk
0:02:58.5]} 8... Qe7 {[%clk 0:02:49.9]} 9. Bd6 {[%clk 0:02:59.1]} 9... Bxd6
{[%clk 0:02:50.3]} 10. Qxd6 {[%clk 0:03:00]} 10... Qd8 {[%clk 0:02:50.7]} 11.
Nc7 {[%clk 0:02:59.6]} 11... Rb8 {[%clk 0:02:50.6]} 12. Be2 {[%clk 0:02:57.8]}
12... b6 {[%clk 0:02:38.9]} 13. O-O-O {[%clk 0:02:52]} 13... Rb7 {[%clk
0:02:35.4]} 14. N7b5 {[%clk 0:02:47.3]} 14... a6 {[%clk 0:02:23.8]} 15. Nd4
{[%clk 0:02:46.1]} 15... Nxd4 {[%clk 0:02:23.5]} 16. Qxd4 {[%clk 0:02:40]} 16...
b5 {[%clk 0:02:18.6]} 17. e5 {[%clk 0:02:40.2]} 17... Ne8 {[%clk 0:02:18]} 18.
Ne4 {[%clk 0:02:40.3]} 18... Rb6 {[%clk 0:02:12]} 19. Kb1 {[%clk 0:02:38.8]}
19... Bb7 {[%clk 0:01:57.9]} 20. Nc5 {[%clk 0:02:37.3]} 20... Bd5 {[%clk
0:01:54.3]} 21. Nxd7 {[%clk 0:02:30.5]} 21... Rd6 {[%clk 0:01:15.2]} 22. exd6
{[%clk 0:02:25.8]} 22... Qxd7 {[%clk 0:01:11.7]} 23. Bf3 {[%clk 0:02:23.2]}
23... Nf6 {[%clk 0:01:10.3]} 24. Bxd5 {[%clk 0:02:22.2]} 24... Nxd5 {[%clk
0:01:11.2]} 25. Qe5 {[%clk 0:02:15.3]} 25... f6 {[%clk 0:01:04.2]} 26. Qg3
{[%clk 0:02:14]} 26... b4 {[%clk 0:00:56.6]} 27. Rhe1 {[%clk 0:02:09.9]} 27...
Qb5 {[%clk 0:00:51.7]} 28. Qd3 {[%clk 0:02:03.6]} 28... Qb6 {[%clk 0:00:49.1]}
29. Ka1 {[%clk 0:01:32.7]} 29... Qxd6 {[%clk 0:00:44.4]} 30. g3 {[%clk
0:01:32.4]} 30... Rc8 {[%clk 0:00:42.3]} 31. Re2 {[%clk 0:01:30.3]} 31... a5
{[%clk 0:00:37.7]} 32. h4 {[%clk 0:01:29.6]} 32... Qc6 {[%clk 0:00:34.2]} 33.
Qe4 {[%clk 0:01:27]} 33... Kf7 {[%clk 0:00:32.7]} 34. Qxh7 {[%clk 0:01:24.9]}
34... a4 {[%clk 0:00:30.4]} 35. Qh5+ {[%clk 0:01:22.7]} 35... Kf8 {[%clk
0:00:28.7]} 36. Qf3 {[%clk 0:01:18.6]} 36... a3 {[%clk 0:00:26.9]} 37. Rde1
{[%clk 0:01:04.9]} 37... axb2+ {[%clk 0:00:24.8]} 38. Kxb2 {[%clk 0:01:05.2]}
38... Qa4 {[%clk 0:00:24.2]} 39. Qb3 {[%clk 0:01:02.6]} 39... Qa5 {[%clk
0:00:24.4]} 40. Ka1 {[%clk 0:00:46.1]} 40... Rc3 {[%clk 0:00:23]} 41. Qb2 {[%clk
0:00:46.3]} 41... Ra3 {[%clk 0:00:21.8]} 42. c4 {[%clk 0:00:23.9]} 42... Nc3
{[%clk 0:00:19]} 43. c5 {[%clk 0:00:11.9]} 43... b3 {[%clk 0:00:16.4]} 44. c6
{[%clk 0:00:04.9]} 44... Rxa2+ {[%clk 0:00:15.2]} 45. Qxa2 {[%clk 0:00:05.3]}
45... Nxa2 {[%clk 0:00:15.5]} 46. Rxe6 {[%clk 0:00:03.9]} 46... Qc3+ {[%clk
0:00:14.8]} 47. Kb1 {[%clk 0:00:04.4]} 47... Qc2+ {[%clk 0:00:15.1]} 48. Ka1
{[%clk 0:00:05.3]} 48... b2+ {[%clk 0:00:15.3]} 49. Kxa2 {[%clk 0:00:06.2]}
49... b1=Q+ {[%clk 0:00:15.8]} 50. Ka3 {[%clk 0:00:07.1]} 50... Qbb3# {[%clk
0:00:16.2]} 0-1

[Event "Early-Titled-Tuesday-Blitz-February-20-2024"]
[Site "Chess.com"]
[Date "2024.02.20"]
[Round "7"]
[White "ckgchess"]
[Black "Statham_01"]
[Result "1-0"]
[WhiteElo "2864"]
[BlackElo "2567"]
[TimeControl "180+1"]
[EndTime "9:20:15 PST"]
[Termination "ckgchess won by resignation"]

1. e4 {[%clk 0:03:00.9]} 1... e5 {[%clk 0:03:00.1]} 2. Nc3 {[%clk 0:02:59.8]}
2... Nf6 {[%clk 0:03:00]} 3. f4 {[%clk 0:03:00.2]} 3... d5 {[%clk 0:03:00]} 4.
fxe5 {[%clk 0:03:00.8]} 4... Nxe4 {[%clk 0:03:00.4]} 5. Qf3 {[%clk 0:03:01.5]}
5... Nc6 {[%clk 0:03:00.3]} 6. Bb5 {[%clk 0:03:01.4]} 6... Nxc3 {[%clk
0:03:00.6]} 7. dxc3 {[%clk 0:03:01.3]} 7... Qh4+ {[%clk 0:03:00.6]} 8. g3 {[%clk
0:03:02]} 8... Qe4+ {[%clk 0:03:01.2]} 9. Qxe4 {[%clk 0:03:00.6]} 9... dxe4
{[%clk 0:03:02.1]} 10. Ne2 {[%clk 0:03:01.2]} 10... Bd7 {[%clk 0:02:58.8]} 11.
Bxc6 {[%clk 0:03:01.2]} 11... Bxc6 {[%clk 0:02:59.7]} 12. Be3 {[%clk 0:03:01.8]}
12... O-O-O {[%clk 0:02:58.1]} 13. Rf1 {[%clk 0:02:58.8]} 13... Bd5 {[%clk
0:02:47]} 14. b3 {[%clk 0:02:44.2]} 14... Ba3 {[%clk 0:02:42.3]} 15. Rd1 {[%clk
0:02:31.5]} 15... Be6 {[%clk 0:02:28.8]} 16. Rxd8+ {[%clk 0:01:56.6]} 16... Rxd8
{[%clk 0:02:29.7]} 17. Rf4 {[%clk 0:01:55.5]} 17... Rd7 {[%clk 0:02:02]} 18.
Rxe4 {[%clk 0:01:52.7]} 18... Bb2 {[%clk 0:01:28]} 19. Bc1 {[%clk 0:00:58.4]}
19... Ba1 {[%clk 0:00:58.2]} 20. Ra4 {[%clk 0:00:54.7]} 20... a6 {[%clk
0:00:46.2]} 21. Rf4 {[%clk 0:00:52.9]} 21... h5 {[%clk 0:00:38.6]} 22. Bd2
{[%clk 0:00:52.2]} 22... g6 {[%clk 0:00:35.6]} 23. Nd4 {[%clk 0:00:50.7]} 23...
Bg4 {[%clk 0:00:33.8]} 24. Re4 {[%clk 0:00:47.4]} 24... c5 {[%clk 0:00:31.3]}
25. e6 {[%clk 0:00:33.3]} 25... Re7 {[%clk 0:00:20.7]} 26. exf7 {[%clk
0:00:20.5]} 26... Rxf7 {[%clk 0:00:12]} 27. Ne2 {[%clk 0:00:20.9]} 27... Bf5
{[%clk 0:00:11]} 28. Re5 {[%clk 0:00:20.3]} 28... b6 {[%clk 0:00:09.2]} 29. Kd1
{[%clk 0:00:14.9]} 29... Bg4 {[%clk 0:00:09.6]} 30. Ke1 {[%clk 0:00:12.1]} 30...
Bf5 {[%clk 0:00:08.2]} 31. Rd5 {[%clk 0:00:07.8]} 31... Kc7 {[%clk 0:00:07]} 32.
Bf4+ {[%clk 0:00:08]} 32... Kb7 {[%clk 0:00:07]} 33. Kd2 {[%clk 0:00:07.8]}
33... Re7 {[%clk 0:00:05.4]} 34. Nc1 {[%clk 0:00:05.1]} 34... Bg4 {[%clk
0:00:02.7]} 35. Re5 {[%clk 0:00:05.6]} 35... Rd7+ {[%clk 0:00:03.1]} 36. Nd3
{[%clk 0:00:06.2]} 36... a5 {[%clk 0:00:02.8]} 37. a4 {[%clk 0:00:06.4]} 37...
c4 {[%clk 0:00:02.7]} 38. bxc4 {[%clk 0:00:06.7]} 38... Rf7 {[%clk 0:00:02.8]}
39. c5 {[%clk 0:00:07]} 39... bxc5 {[%clk 0:00:03.2]} 40. Nxc5+ {[%clk
0:00:07.9]} 40... Kc6 {[%clk 0:00:03.8]} 41. Nb3 {[%clk 0:00:07.3]} 41... Bb2
{[%clk 0:00:03.4]} 42. Nxa5+ {[%clk 0:00:07]} 42... Kb6 {[%clk 0:00:02.4]} 43.
Nc4+ {[%clk 0:00:07.3]} 43... Kc6 {[%clk 0:00:02.6]} 44. Nxb2 {[%clk 0:00:08.2]}
44... Rd7+ {[%clk 0:00:03.3]} 45. Nd3 {[%clk 0:00:08.4]} 45... g5 {[%clk
0:00:04.1]} 46. Rxg5 {[%clk 0:00:08.7]} 46... Rf7 {[%clk 0:00:04.3]} 47. Ne5+
{[%clk 0:00:08.9]} 1-0